fUSD/lending_fUSD_20240222
["ID","MTS","AMOUNT","RATE_DAILY","PERIOD"]
[314857881,1708597833239,-464.61,0.00034776,2]
[314857882,1708597833249,-300.0,0.00034783,2]
[314857883,1708597833258,-764.444028,0.00034794,2]
[314857884,1708597833267,-631.3444088,0.00034794,2]
[314857885,1708597833280,-4144.26708576,0.00034794,2]
[314857886,1708597833291,-364.74675334,0.00034794,2]
[314857887,1708597833345,-4039.8307391,0.00034794,2]
[314857888,1708597833355,-668.888525,0.00034794,2]
[314857889,1708597833365,-8032.665363,0.00034794,2]
[314857890,1708597833374,-477.777518,0.00034794,2]
[314857891,1708597833385,-5737.618116,0.00034794,2]
[314857892,1708597833396,-4590.094493,0.00034794,2]
[314857893,1708597833405,-14762.16006278,0.000348,3]
[314857894,1708597833418,-9345.83993722,0.000348,3]
[314857895,1708597833428,-150.0,0.00034824,2]
[314857896,1708597833438,-150.0,0.0003487,2]
[314857897,1708597833447,-150.0,0.00034883,2]
[314857898,1708597833458,-2956.53518282,0.000349,2]
[314857899,1708597833467,-711.42984981,0.000349,4]
[314857900,1708597833481,-788.57015019,0.000349,4]
[314857901,1708597833493,-150.0,0.0003491,2]
[314857902,1708597833502,-200.0,0.00034931,2]
[314857903,1708597833512,-200.0,0.00034931,2]
[314857904,1708597833522,-200.0,0.00034931,2]
[314857905,1708597833531,-81.83990651,0.00034931,2]
[314857906,1708597833560,-69.16009349,0.00034931,2]
[314857907,1708597833569,-1019.258705,0.00034931,2]
[314857908,1708597833579,-3535.09513878,0.00034931,2]
[314857917,1708597837530,-150.0,0.00034785,2]
[314857918,1708597837541,-8705.15684322,0.00034931,2]
[314857919,1708597837550,-891.851366,0.00034931,2]
[314857920,1708597837561,-7203.65132855,0.00034931,2]
[314857921,1708597837586,-300.32,0.00034931,2]
[314857922,1708597837598,-3206.24915645,0.00034931,2]
[314857923,1708597837607,-593.05383749,0.00034931,2]
[314857924,1708597837644,-43.98285251,0.00034931,2]
[314857925,1708597837654,-7650.157489,0.00034931,2]
[314857926,1708597837663,-5108.13853888,0.00034931,2]
[314857927,1708597837676,-253.89399304,0.00034931,2]
[314857928,1708597837704,-758.09345908,0.00034931,2]
[314857929,1708597837714,-464.61,0.00034953,2]
[314857930,1708597837723,-1500.0,0.00034959,2]
[314857931,1708597837732,-150.0,0.00034994,2]
[314857932,1708597837741,-172.78716963,0.00035,5]
[314857933,1708597837751,-242123.80904581,0.00035,4]
[314857934,1708597837760,-586.79552556,0.00035,4]
[314857935,1708597837770,-505.1768332,0.00035,4]
[314857936,1708597837779,-2075.31844549,0.00035,2]
[314857937,1708597837789,-101236.88071452,0.00035,5]
[314857938,1708597837798,-150.0,0.00035025,2]
[314857939,1708597837808,-150.0,0.00035034,2]
[314857940,1708597837817,-284.80202442,0.00035065,2]
[314857941,1708597837826,-1274.073381,0.00035068,2]
[314857942,1708597837836,-15300.314978,0.00035068,2]
[314857943,1708597837845,-1114.814208,0.00035068,2]
[314857944,1708597837854,-13387.775606,0.00035068,2]
[314857945,1708597837864,-796.295863,0.00035068,2]
[314857946,1708597837874,-9562.696861,0.00035068,2]
[314857947,1708597837883,-7650.157489,0.00035068,2]
[314857948,1708597837893,-150.0,0.0003509,2]
[314857949,1708597837902,-150.0,0.00035098,2]
[314857950,1708597837911,-150.0,0.00035119,2]
[314857951,1708597837921,-150.0,0.00035125,2]
[314857952,1708597837930,-150.0,0.00035128,2]
[314857962,1708597838290,-464.61,0.0003513,2]
[314857963,1708597838301,-308.68221181,0.00035135,2]
[314857964,1708597838311,-150.0,0.00035141,2]
[314857965,1708597838320,-151.022219,0.00035151,2]
[314857966,1708597838330,-151.022219,0.00035151,2]
[314857967,1708597838339,-151.022219,0.00035151,2]
[314857968,1708597838349,-151.022219,0.00035151,2]
[314857969,1708597838358,-151.022219,0.00035151,2]
[314857970,1708597838369,-150.0,0.00035155,2]
[314857971,1708597838378,-1305.88558546,0.00035165,7]
[314857972,1708597838388,-150.0,0.00035168,2]
[314857973,1708597838397,-151.97953535,0.00035174,2]
[314857974,1708597838407,-150.0,0.00035182,2]
[314857975,1708597838416,-150.0,0.00035187,2]
[314857976,1708597838426,-150.0,0.00035205,2]
[314857977,1708597838435,-150.0,0.00035205,2]
[314857978,1708597838445,-150.0,0.00035227,2]
[314857979,1708597838455,-169.7881091,0.00035232,7]
[314857980,1708597838464,-1498.0063114,0.00035234,2]
[314857981,1708597838474,-150.0,0.00035243,2]
[314857982,1708597838484,-150.0,0.00035244,2]
[314857983,1708597838494,-284.80202441,0.00035246,2]
[314857984,1708597838504,-150.0,0.0003525,2]
[314857985,1708597838513,-150.0,0.00035251,2]
[314857986,1708597838522,-155.0,0.00035264,4]
[314857987,1708597838533,-150.0,0.00035264,2]
[314857988,1708597838543,-449750.33948683,0.00035264,4]
[314857989,1708597838552,-103327.12932571,0.00035265,4]
[314857990,1708597838562,-1305.88558543,0.00035272,7]
[314857991,1708597838570,-150.0,0.00035279,2]
[314857992,1708597838580,-162.89,0.00035281,2]
[314857993,1708597838589,-150.0,0.00035292,2]
[314857994,1708597838598,-464.61,0.00035308,2]
[314857995,1708597838607,-150.0,0.00035315,2]
[314857996,1708597838617,-300.0,0.00035321,2]
[314857997,1708597838627,-150.0,0.00035321,2]
[314857998,1708597838637,-150.0,0.00035331,2]
[314857999,1708597838646,-150.0,0.00035332,2]
[314858000,1708597838657,-150.0,0.00035333,2]
[314858001,1708597838666,-150.0,0.00035339,2]
[314858002,1708597838676,-1783.702733,0.00035342,2]
[314858003,1708597838685,-21420.440969,0.00035342,2]
[314858004,1708597838695,-1560.739891,0.00035342,2]
[314858005,1708597838705,-18742.885848,0.00035342,2]
[314858006,1708597838715,-1114.814208,0.00035342,2]
[314858007,1708597838724,-13387.775606,0.00035342,2]
[314858008,1708597838734,-10710.220485,0.00035342,2]
[314858009,1708597838743,-150.0,0.00035342,2]
[314858010,1708597838753,-150.0,0.00035342,2]
[314858011,1708597838762,-150.0,0.00035342,2]
[314858012,1708597838771,-412.88,0.00035342,2]
[314858013,1708597838781,-150.0,0.00035342,2]
[314858014,1708597838790,-150.0,0.00035342,2]
[314858015,1708597838800,-150.0,0.00035342,2]
[314858016,1708597838810,-412.88,0.00035342,2]
[314858017,1708597838819,-150.0,0.00035342,2]
[314858018,1708597838829,-314.85,0.00035342,2]
[314858019,1708597838839,-150.0,0.00035342,2]
[314858020,1708597838848,-302.03,0.00035342,2]
[314858021,1708597838858,-150.0,0.00035342,2]
[314858022,1708597838868,-150.0,0.00035342,2]
[314858023,1708597838878,-150.0,0.00035342,2]
[314858024,1708597838887,-150.0,0.00035343,2]
[314858025,1708597838897,-150.0,0.00035347,2]
[314858026,1708597838907,-150.0,0.00035355,2]
[314858027,1708597838916,-150.0,0.00035359,2]
[314858028,1708597838926,-150.0,0.00035363,2]
[314858029,1708597838936,-150.0,0.00035368,2]
[314858030,1708597838946,-300.0,0.00035377,2]
[314858031,1708597838955,-150.0,0.00035378,2]
[314858032,1708597838965,-1305.88558543,0.00035378,8]
[314858033,1708597838975,-151.97953527,0.00035379,2]
[314858034,1708597838984,-153.47085051,0.00035381,2]
[314858035,1708597838995,-150.0,0.00035385,2]
[314858036,1708597839004,-150.0,0.00035418,2]
[314858037,1708597839013,-385.6,0.00035421,2]
[314858038,1708597839023,-284.80202441,0.00035428,2]
[314858039,1708597839032,-150.0,0.0003543,2]
[314858040,1708597839041,-150.0,0.00035433,2]
[314858041,1708597839050,-150.0,0.00035436,2]
[314858042,1708597839059,-150.0,0.00035451,2]
[314858043,1708597839069,-150.0,0.00035452,2]
[314858044,1708597839078,-150.0,0.00035455,2]
[314858045,1708597839087,-150.0,0.00035458,2]
[314858046,1708597839096,-1305.88558543,0.00035485,8]
[314858047,1708597839105,-464.61,0.00035485,2]
[314858048,1708597839115,-151.022219,0.00035498,2]
[314858049,1708597839124,-151.022219,0.00035498,2]
[314858050,1708597839133,-151.022219,0.00035498,2]
[314858051,1708597839142,-151.022219,0.00035498,2]
[314858052,1708597839152,-151.022219,0.00035498,2]
[314858053,1708597839161,-151.022219,0.00035498,2]
[314858054,1708597839171,-151.022219,0.00035498,2]
[314858055,1708597839180,-151.022219,0.00035498,2]
[314858056,1708597839189,-151.022219,0.00035498,2]
[314858057,1708597839198,-1362.0,0.000355,7]
[314858058,1708597839208,-5000.0,0.00035516,3]
[314858059,1708597839217,-55555.0,0.00035516,3]
[314858060,1708597839227,-446.4217025,0.00035516,2]
[314858061,1708597839237,-348.7082445,0.00035516,2]
[314858062,1708597839246,-855.35001158,0.00035516,2]
[314858063,1708597839255,-159.46277054,0.00035516,2]
[314858064,1708597839264,-261.63805564,0.00035516,25]
[314858065,1708597839273,-398.17948639,0.00035516,2]
[314858066,1708597839282,-166.90405846,0.00035516,2]
[314858067,1708597839291,-1130.60210565,0.00035516,2]
[314858068,1708597839300,-150.0,0.00035536,2]
[314858069,1708597839309,-150.0,0.00035538,2]
[314858070,1708597839318,-150.0,0.0003554,2]
[314858071,1708597839327,-150.0,0.00035564,2]
[314858072,1708597839336,-150.0,0.00035568,2]
[314858073,1708597839345,-150.0,0.00035574,2]
[314858074,1708597839355,-150.0,0.00035575,2]
[314858075,1708597839364,-150.0,0.00035575,2]
[314858076,1708597839373,-150.0,0.00035582,2]
[314858077,1708597839383,-151.97953527,0.00035585,2]
[314858078,1708597839392,-2038.51741,0.00035589,2]
[314858079,1708597839401,-24480.503965,0.00035589,2]
[314858080,1708597839410,-1783.702733,0.00035589,2]
[314858081,1708597839420,-21420.44097,0.00035589,2]
[314858082,1708597839429,-1274.073381,0.00035589,2]
[314858083,1708597839438,-15300.314978,0.00035589,2]
[314858084,1708597839447,-12240.251983,0.00035589,2]
[314858085,1708597839457,-150.0,0.00035589,2]
[314858086,1708597839466,-1305.88558543,0.00035592,8]
[314858087,1708597839476,-150.0,0.00035595,2]
[314858088,1708597839487,-150.0,0.00035599,2]
[314858089,1708597839497,-3000.0,0.000356,3]
[314858090,1708597839506,-468.59,0.000356,2]
[314858091,1708597839516,-200.0,0.00035603,3]
[314858092,1708597839526,-284.80202441,0.00035609,2]
[314858093,1708597839535,-150.0,0.00035613,2]
[314858094,1708597839544,-300.57687551,0.00035614,4]
[314858095,1708597839553,-155.84526778,0.00035615,4]
[314858096,1708597839563,-184.99479781,0.00035616,3]
[314858097,1708597839572,-175.84183305,0.00035616,2]
[314858098,1708597839582,-370.93889261,0.00035616,2]
[314858099,1708597839591,-22870.5445267,0.00035616,2]
[314858100,1708597839601,-523.88372643,0.00035616,2]
[314858101,1708597839611,-500.0,0.00035616,2]
[314858102,1708597839621,-503.99876947,0.00035616,2]
[314858103,1708597839630,-570.82953736,0.00035616,2]
[314858104,1708597839639,-213.04636653,0.00035616,2]
[314858105,1708597839648,-315.74414032,0.00035616,2]
[314858106,1708597839658,-531.91150754,0.00035616,2]
[314858107,1708597839667,-500.0,0.00035616,2]
[314858108,1708597839677,-609.91428117,0.00035616,15]
[314858109,1708597839686,-150.70890816,0.00035616,2]
[314858110,1708597839695,-500.0,0.00035616,2]
[314858111,1708597839704,-500.0,0.00035616,2]
[314858112,1708597839713,-2000.0,0.00035616,2]
[314858113,1708597839722,-200.0,0.00035616,2]
[314858114,1708597839732,-500.0,0.00035616,2]
[314858115,1708597839741,-562.93633082,0.00035616,2]
[314858116,1708597839751,-500.0,0.00035616,2]
[314858117,1708597839760,-500.0,0.00035616,2]
[314858118,1708597839770,-500.0,0.00035616,2]
[314858119,1708597839779,-545.36,0.00035616,2]
[314858120,1708597839788,-500.0,0.00035616,2]
[314858121,1708597839798,-500.0,0.00035616,2]
[314858122,1708597839807,-500.0,0.00035616,2]
[314858123,1708597839816,-500.0,0.00035616,2]
[314858124,1708597839826,-500.0,0.00035616,2]
[314858125,1708597839835,-500.0,0.00035616,2]
[314858126,1708597839844,-500.0,0.00035616,2]
[314858127,1708597839853,-500.0,0.00035616,2]
[314858128,1708597839863,-500.0,0.00035616,2]
[314858129,1708597839872,-500.0,0.00035616,2]
[314858130,1708597839881,-500.0,0.00035616,2]
[314858131,1708597839890,-151.0,0.00035616,7]
[314858132,1708597839899,-500.0,0.00035616,2]
[314858133,1708597839909,-500.0,0.00035616,2]
[314858134,1708597839919,-500.0,0.00035616,2]
[314858135,1708597839929,-500.0,0.00035616,2]
[314858136,1708597839939,-161.85052097,0.00035616,2]
[314858137,1708597839948,-500.0,0.00035616,2]
[314858138,1708597839957,-500.0,0.00035616,2]
[314858139,1708597839967,-529.35,0.00035616,2]
[314858140,1708597839977,-500.0,0.00035616,2]
[314858141,1708597839986,-500.0,0.00035616,2]
[314858142,1708597839996,-500.0,0.00035616,2]
[314858144,1708597840005,-500.0,0.00035616,2]
[314858145,1708597840014,-500.0,0.00035616,2]
[314858147,1708597840024,-500.0,0.00035616,2]
[314858149,1708597840033,-500.0,0.00035616,2]
[314858150,1708597840043,-500.0,0.00035616,2]
[314858151,1708597840052,-500.0,0.00035616,2]
[314858152,1708597840061,-500.0,0.00035616,2]
[314858153,1708597840071,-500.0,0.00035616,2]
[314858154,1708597840080,-507.8836511,0.00035616,2]
[314858155,1708597840090,-500.0,0.00035616,2]
[314858156,1708597840099,-500.0,0.00035616,2]
[314858157,1708597840108,-500.0,0.00035616,2]
[314858158,1708597840118,-348.39058455,0.00035616,2]
[314858159,1708597840127,-557.89,0.00035616,2]
[314858160,1708597840137,-500.0,0.00035616,2]
[314858161,1708597840146,-161.24193541,0.00035616,2]
[314858162,1708597840155,-635.2,0.00035616,2]
[314858163,1708597840164,-500.0,0.00035616,2]
[314858164,1708597840174,-500.0,0.00035616,2]
[314858165,1708597840183,-500.0,0.00035616,2]
[314858166,1708597840192,-151.0,0.00035616,7]
[314858167,1708597840202,-500.0,0.00035616,2]
[314858168,1708597840211,-500.0,0.00035616,2]
[314858169,1708597840221,-500.0,0.00035616,2]
[314858170,1708597840230,-500.0,0.00035616,2]
[314858171,1708597840239,-500.0,0.00035616,2]
[314858172,1708597840248,-557.05,0.00035616,2]
[314858173,1708597840257,-500.0,0.00035616,2]
[314858174,1708597840266,-500.0,0.00035616,2]
[314858175,1708597840275,-500.0,0.00035616,2]
[314858176,1708597840284,-500.0,0.00035616,2]
[314858177,1708597840293,-500.0,0.00035616,2]
[314858178,1708597840302,-500.0,0.00035616,2]
[314858179,1708597840311,-500.0,0.00035616,2]
[314858180,1708597840321,-510.37,0.00035616,2]
[314858181,1708597840330,-500.0,0.00035616,2]
[314858182,1708597840339,-500.0,0.00035616,2]
[314858183,1708597840348,-500.0,0.00035616,2]
[314858184,1708597840357,-500.0,0.00035616,2]
[314858185,1708597840366,-500.0,0.00035616,2]
[314858186,1708597840376,-151.0,0.00035616,7]
[314858187,1708597840385,-500.0,0.00035616,2]
[314858188,1708597840394,-506.74591003,0.00035616,2]
[314858189,1708597840403,-309.10646831,0.00035616,2]
[314858190,1708597840412,-500.0,0.00035616,2]
[314858191,1708597840421,-500.0,0.00035616,2]
[314858192,1708597840431,-500.0,0.00035616,2]
[314858193,1708597840440,-500.0,0.00035616,2]
[314858194,1708597840449,-500.0,0.00035616,2]
[314858195,1708597840459,-172.783178,0.00035616,7]
[314858196,1708597840470,-500.0,0.00035616,2]
[314858197,1708597840480,-500.0,0.00035616,2]
[314858198,1708597840493,-500.0,0.00035616,2]
[314858199,1708597840502,-500.0,0.00035616,2]
[314858200,1708597840511,-500.0,0.00035616,2]
[314858201,1708597840522,-500.0,0.00035616,2]
[314858202,1708597840532,-201.852376,0.00035616,7]
[314858203,1708597840542,-500.0,0.00035616,2]
[314858204,1708597840551,-500.0,0.00035616,2]
[314858205,1708597840561,-201.852376,0.00035616,7]
[314858206,1708597840571,-545.44,0.00035616,2]
[314858207,1708597840580,-500.0,0.00035616,2]
[314858208,1708597840589,-500.0,0.00035616,2]
[314858209,1708597840598,-500.0,0.00035616,2]
[314858210,1708597840608,-500.0,0.00035616,2]
[314858211,1708597840617,-500.0,0.00035616,2]
[314858212,1708597840626,-500.0,0.00035616,2]
[314858213,1708597840637,-500.0,0.00035616,2]
[314858214,1708597840647,-500.0,0.00035616,2]
[314858215,1708597840656,-500.0,0.00035616,2]
[314858216,1708597840666,-500.0,0.00035616,2]
[314858217,1708597840677,-500.0,0.00035616,2]
[314858218,1708597840687,-500.0,0.00035616,2]
[314858219,1708597840697,-500.0,0.00035616,2]
[314858220,1708597840707,-612.49,0.00035616,2]
[314858221,1708597840717,-500.0,0.00035616,2]
[314858222,1708597840727,-500.0,0.00035616,2]
[314858223,1708597840737,-500.0,0.00035616,2]
[314858224,1708597840748,-544.17,0.00035616,2]
[314858225,1708597840757,-222.53740234,0.00035616,2]
[314858226,1708597840767,-500.0,0.00035616,2]
[314858227,1708597840777,-500.0,0.00035616,2]
[314858228,1708597840787,-500.0,0.00035616,2]
[314858229,1708597840797,-500.0,0.00035616,2]
[314858230,1708597840806,-500.0,0.00035616,2]
[314858231,1708597840816,-509.54018765,0.00035616,2]
[314858232,1708597840826,-500.0,0.00035616,2]
[314858233,1708597840836,-500.0,0.00035616,2]
[314858234,1708597840846,-500.0,0.00035616,2]
[314858235,1708597840855,-500.0,0.00035616,2]
[314858236,1708597840865,-500.0,0.00035616,2]
[314858237,1708597840874,-500.0,0.00035616,2]
[314858238,1708597840884,-500.0,0.00035616,2]
[314858239,1708597840894,-508.79556699,0.00035616,2]
[314858240,1708597840904,-500.0,0.00035616,2]
[314858241,1708597840913,-500.0,0.00035616,2]
[314858242,1708597840924,-500.0,0.00035616,2]
[314858243,1708597840934,-500.0,0.00035616,2]
[314858244,1708597840943,-500.0,0.00035616,2]
[314858245,1708597840953,-500.0,0.00035616,2]
[314858246,1708597840962,-500.0,0.00035616,2]
[314858247,1708597840972,-500.0,0.00035616,2]
[314858248,1708597840982,-649.26,0.00035616,2]
[314858249,1708597840991,-500.0,0.00035616,2]
[314858250,1708597841001,-500.0,0.00035616,2]
[314858251,1708597841011,-500.0,0.00035616,2]
[314858252,1708597841020,-500.0,0.00035616,2]
[314858253,1708597841030,-923.31,0.00035616,2]
[314858254,1708597841039,-578.4326049,0.00035616,2]
[314858255,1708597841048,-500.0,0.00035616,2]
[314858257,1708597841057,-702.67,0.00035616,2]
[314858258,1708597841066,-500.0,0.00035616,2]
[314858259,1708597841075,-500.0,0.00035616,2]
[314858260,1708597841084,-500.0,0.00035616,2]
[314858261,1708597841093,-561.91,0.00035616,2]
[314858262,1708597841103,-557.6195034,0.00035616,2]
[314858263,1708597841112,-500.0,0.00035616,2]
[314858264,1708597841121,-500.0,0.00035616,2]
[314858265,1708597841131,-500.0,0.00035616,2]
[314858266,1708597841143,-507.89838842,0.00035616,14]
[314858267,1708597841152,-513.93134784,0.00035616,2]
[314858268,1708597841161,-500.0,0.00035616,2]
[314858269,1708597841170,-500.0,0.00035616,2]
[314858270,1708597841182,-500.0,0.00035616,2]
[314858271,1708597841191,-500.0,0.00035616,2]
[314858272,1708597841200,-500.0,0.00035616,2]
[314858273,1708597841209,-500.0,0.00035616,2]
[314858274,1708597841218,-500.0,0.00035616,2]
[314858275,1708597841227,-500.0,0.00035616,2]
[314858276,1708597841237,-151.0,0.00035616,7]
[314858277,1708597841246,-500.0,0.00035616,2]
[314858278,1708597841255,-500.0,0.00035616,2]
[314858279,1708597841264,-151.0,0.00035616,7]
[314858280,1708597841273,-152.820159,0.00035616,7]
[314858281,1708597841282,-1189.3,0.00035616,2]
[314858282,1708597841291,-592.12,0.00035616,2]
[314858283,1708597841301,-500.0,0.00035616,2]
[314858284,1708597841310,-626.06,0.00035616,2]
[314858285,1708597841319,-500.0,0.00035616,2]
[314858286,1708597841329,-500.0,0.00035616,2]
[314858287,1708597841337,-500.0,0.00035616,2]
[314858288,1708597841346,-500.0,0.00035616,2]
[314858289,1708597841356,-505.39960691,0.00035616,2]
[314858290,1708597841365,-500.0,0.00035616,2]
[314858291,1708597841374,-500.0,0.00035616,2]
[314858292,1708597841383,-500.0,0.00035616,2]
[314858293,1708597841392,-500.0,0.00035616,2]
[314858294,1708597841402,-500.0,0.00035616,2]
[314858295,1708597841411,-500.0,0.00035616,2]
[314858296,1708597841420,-500.0,0.00035616,2]
[314858297,1708597841430,-805.65,0.00035616,2]
[314858298,1708597841440,-500.0,0.00035616,2]
[314858299,1708597841450,-500.0,0.00035616,2]
[314858300,1708597841459,-500.0,0.00035616,2]
[314858301,1708597841468,-500.0,0.00035616,2]
[314858302,1708597841478,-500.0,0.00035616,2]
[314858303,1708597841491,-500.0,0.00035616,2]
[314858304,1708597841500,-500.0,0.00035616,2]
[314858305,1708597841509,-500.0,0.00035616,2]
[314858306,1708597841518,-500.0,0.00035616,2]
[314858307,1708597841527,-500.0,0.00035616,2]
[314858308,1708597841536,-500.0,0.00035616,2]
[314858309,1708597841545,-366.79290899,0.00035616,2]
[314858310,1708597841554,-500.0,0.00035616,2]
[314858311,1708597841565,-500.0,0.00035616,2]
[314858312,1708597841574,-500.0,0.00035616,2]
[314858313,1708597841583,-649.99,0.00035616,2]
[314858314,1708597841592,-802.38,0.00035616,2]
[314858315,1708597841601,-517.39,0.00035616,2]
[314858316,1708597841611,-500.0,0.00035616,2]
[314858317,1708597841620,-500.0,0.00035616,2]
[314858318,1708597841630,-500.0,0.00035616,2]
[314858319,1708597841639,-500.0,0.00035616,2]
[314858320,1708597841648,-500.0,0.00035616,2]
[314858321,1708597841657,-500.0,0.00035616,2]
[314858322,1708597841667,-500.0,0.00035616,2]
[314858323,1708597841677,-502.16226662,0.00035616,2]
[314858324,1708597841686,-500.0,0.00035616,2]
[314858325,1708597841696,-500.0,0.00035616,2]
[314858326,1708597841705,-500.0,0.00035616,2]
[314858327,1708597841714,-500.0,0.00035616,2]
[314858328,1708597841723,-500.0,0.00035616,2]
[314858329,1708597841732,-535.35,0.00035616,2]
[314858330,1708597841742,-869.11,0.00035616,2]
[314858331,1708597841752,-804.22,0.00035616,2]
[314858332,1708597841761,-500.0,0.00035616,2]
[314858333,1708597841771,-500.0,0.00035616,2]
[314858334,1708597841780,-500.0,0.00035616,2]
[314858335,1708597841790,-500.0,0.00035616,2]
[314858336,1708597841800,-500.0,0.00035616,2]
[314858337,1708597841809,-542.37,0.00035616,2]
[314858338,1708597841820,-500.0,0.00035616,2]
[314858339,1708597841829,-971.84,0.00035616,2]
[314858340,1708597841838,-500.0,0.00035616,2]
[314858341,1708597841848,-500.0,0.00035616,2]
[314858342,1708597841858,-500.0,0.00035616,2]
[314858343,1708597841867,-500.0,0.00035616,2]
[314858344,1708597841877,-500.0,0.00035616,2]
[314858345,1708597841886,-151.0,0.00035616,7]
[314858346,1708597841896,-500.0,0.00035616,2]
[314858347,1708597841905,-500.0,0.00035616,2]
[314858348,1708597841915,-500.0,0.00035616,2]
[314858349,1708597841925,-500.0,0.00035616,2]
[314858350,1708597841934,-151.0,0.00035616,7]
[314858351,1708597841944,-500.0,0.00035616,2]
[314858352,1708597841953,-500.0,0.00035616,2]
[314858353,1708597841963,-770.66,0.00035616,2]
[314858354,1708597841972,-500.0,0.00035616,2]
[314858355,1708597841982,-500.0,0.00035616,2]
[314858356,1708597841991,-500.0,0.00035616,2]
[314858357,1708597842000,-500.0,0.00035616,2]
[314858358,1708597842009,-602.07,0.00035616,2]
[314858359,1708597842019,-500.0,0.00035616,2]
[314858360,1708597842028,-150.0,0.00035616,2]
[314858361,1708597842038,-500.0,0.00035616,2]
[314858362,1708597842047,-151.0,0.00035616,7]
[314858363,1708597842056,-500.0,0.00035616,2]
[314858364,1708597842065,-500.0,0.00035616,2]
[314858365,1708597842074,-214.17116011,0.00035616,2]
[314858366,1708597842083,-500.0,0.00035616,2]
[314858367,1708597842092,-510.79342964,0.00035616,2]
[314858368,1708597842101,-151.0,0.00035616,7]
[314858369,1708597842111,-666.02,0.00035616,2]
[314858370,1708597842121,-500.0,0.00035616,2]
[314858371,1708597842130,-500.0,0.00035616,2]
[314858372,1708597842140,-500.0,0.00035616,2]
[314858373,1708597842150,-500.0,0.00035616,2]
[314858374,1708597842160,-500.0,0.00035616,2]
[314858375,1708597842170,-500.0,0.00035616,2]
[314858376,1708597842182,-500.0,0.00035616,2]
[314858377,1708597842191,-500.0,0.00035616,2]
[314858378,1708597842200,-500.0,0.00035616,2]
[314858379,1708597842211,-3220.68042907,0.00035616,2]
[314858380,1708597842221,-443.50359702,0.00035616,2]
[314858381,1708597842233,-1135.14,0.00035616,2]
[314858383,1708597842440,-500.0,0.00035616,2]
[314858384,1708597842490,-500.0,0.00035616,2]
[314858385,1708597842512,-1640.7,0.00035616,2]
[314858386,1708597842535,-500.0,0.00035616,2]
[314858387,1708597842555,-500.0,0.00035616,2]
[314858388,1708597842577,-944.59,0.00035616,2]
[314858389,1708597842600,-500.0,0.00035616,2]
[314858390,1708597842616,-500.0,0.00035616,2]
[314858391,1708597842625,-703.28,0.00035616,2]
[314858392,1708597842635,-500.0,0.00035616,2]
[314858393,1708597842644,-500.0,0.00035616,2]
[314858394,1708597842653,-438.5061561,0.00035616,2]
[314858395,1708597842662,-524.8661905,0.00035616,2]
[314858396,1708597842671,-500.0,0.00035616,2]
[314858397,1708597842682,-506.52650878,0.00035616,2]
[314858398,1708597842692,-500.0,0.00035616,2]
[314858399,1708597842701,-500.0,0.00035616,2]
[314858400,1708597842711,-647.63,0.00035616,2]
[314858401,1708597842720,-500.0,0.00035616,2]
[314858402,1708597842730,-500.0,0.00035616,2]